bitfinex/quotes_SOLUSD_20250102
["timestamp","ask_amount","ask_price","bid_price","bid_amount"]
[1735825386903,0.74131617,208.65,208.61,7.96586118]
[1735825388299,24.027864,208.64,208.6,7.96586118]
[1735825388505,0.74131617,208.63,208.59,7.96586118]
[1735825388705,0.74131617,208.63,208.58,7.96586118]
[1735825388884,0.74131617,208.63,208.5,31.86344472]
[1735825388885,0.74131617,208.63,208.54,20.0]
[1735825389085,0.74131617,208.63,208.58,7.96586118]
[1735825389481,24.027864,208.62,208.57,7.96586118]
[1735825389680,0.74131617,208.61,208.57,7.96586118]
[1735825389881,24.89467017,208.64,208.57,7.96586118]
[1735825390680,24.89467017,208.64,208.58,7.96586118]
[1735825396107,24.89467017,208.64,208.59,7.96586118]
[1735825396802,0.74131617,208.64,208.6,7.96586118]
[1735825397107,0.74131617,208.65,208.6,7.96586118]
[1735825397706,24.153354,208.64,208.54,20.0]
[1735825397898,24.027864,208.62,208.57,7.96586118]
[1735825398102,0.74131617,208.61,208.59,7.96586118]
[1735825399497,0.74131617,208.61,208.57,7.96586118]
[1735825400492,0.74131617,208.61,208.58,7.96586118]
[1735825405596,24.027864,208.6,208.58,7.96586118]
[1735825405804,0.74131617,208.59,208.55,7.96586118]
[1735825406004,23.776884,208.6,208.55,7.96586118]
[1735825406306,0.74131617,208.59,208.55,7.96586118]
[1735825408590,0.74131617,208.59,208.56,7.96586118]
[1735825408796,0.74131617,208.61,208.56,7.96586118]
[1735825409318,24.027864,208.6,208.56,7.96586118]
[1735825409531,0.74131617,208.59,208.56,7.96586118]
[1735825413027,0.74131617,208.59,208.54,7.96586118]
[1735825413315,24.027864,208.58,208.52,7.96586118]
[1735825413519,24.027864,208.56,208.52,7.96586118]
[1735825413711,0.74131617,208.55,208.52,7.96586118]
[1735825413906,24.027864,208.54,208.51,7.96586118]
[1735825414221,0.74131617,208.53,208.51,7.96586118]
[1735825414524,0.74131617,208.53,208.46,8.1722]
[1735825414525,0.74131617,208.53,208.5,7.96586118]
[1735825416220,24.027864,208.52,208.48,7.96586118]
[1735825416417,0.74131617,208.51,208.47,7.96586118]
[1735825416801,0.74131617,208.51,208.49,7.96586118]
[1735825417403,24.027864,208.5,208.47,7.96586118]
[1735825417629,0.74131617,208.49,208.47,7.96586118]
[1735825419403,24.027864,208.48,208.46,7.96586118]
[1735825419602,0.74131617,208.47,208.46,7.96586118]
[1735825420725,0.74131617,208.47,208.45,7.96586118]
[1735825421230,0.74131617,208.47,208.44,7.96586118]
[1735825421726,0.74131617,208.47,208.45,7.96586118]
[1735825421913,0.74131617,208.47,208.46,7.96586118]
[1735825422314,0.74131617,208.52,208.46,7.96586118]
[1735825422515,24.153354,208.51,208.47,7.96586118]
[1735825422711,24.027864,208.49,208.47,7.96586118]
[1735825422912,0.74131617,208.48,208.47,7.96586118]
[1735825423112,0.74131617,208.48,208.46,7.96586118]
[1735825423831,0.25098,208.5,208.46,7.96586118]
[1735825424026,0.74131617,208.49,208.46,7.96586118]
[1735825424929,23.776884,208.49,208.46,7.96586118]
[1735825425141,0.74131617,208.48,208.46,7.96586118]
[1735825425739,23.776884,208.49,208.46,7.96586118]
[1735825425908,0.74131617,208.48,208.46,7.96586118]
[1735825426110,23.776884,208.49,208.46,7.96586118]
[1735825426323,0.74131617,208.48,208.46,7.96586118]
[1735825426612,0.74131617,208.48,208.47,7.96586118]
[1735825427932,0.74131617,208.48,208.46,7.96586118]
[1735825433427,0.74131617,208.54,208.47,7.96586118]
[1735825433627,23.902374,208.53,208.48,7.96586118]
[1735825433812,0.25098,208.51,208.41,7.984]
[1735825434017,0.25098,208.51,208.47,7.96586118]
[1735825434551,0.25098,208.51,208.46,7.96586118]
[1735825436337,0.74131617,208.52,208.47,7.96586118]
[1735825436522,0.74131617,208.53,208.48,7.96586118]
[1735825436716,0.74131617,208.53,208.49,7.96586118]
[1735825437528,23.776884,208.53,208.48,7.96586118]
[1735825437736,0.74131617,208.52,208.48,7.96586118]
[1735825440147,0.37647,208.54,208.5,7.96586118]
[1735825440148,0.74131617,208.54,208.5,7.96586118]
[1735825440315,0.74131617,208.54,208.51,7.96586118]
[1735825440523,0.86680617,208.57,208.51,7.96586118]
[1735825441242,24.027864,208.56,208.51,7.96586118]
[1735825441424,0.74131617,208.55,208.51,7.96586118]
[1735825442343,0.99229617,208.56,208.51,7.96586118]
[1735825443246,0.99229617,208.56,208.44,20.71945411]
[1735825443457,0.99229617,208.56,208.5,7.96586118]
[1735825446640,0.99229617,208.56,208.51,7.96586118]
[1735825448023,0.99229617,208.56,208.53,7.96586118]
[1735825448225,0.74131617,208.6,208.55,7.96586118]
[1735825448546,32.11921518,208.58,208.51,7.96586118]
[1735825448745,0.37647,208.56,208.51,7.96586118]
[1735825451046,0.37647,208.56,208.52,7.96586118]
[1735825452129,24.153354,208.56,208.53,7.96586118]
[1735825452329,0.74131617,208.55,208.52,7.96586118]
[1735825453451,0.74131617,208.55,208.53,7.96586118]
[1735825454352,7.96586118,208.6,208.53,7.96586118]
[1735825454560,0.74131617,208.59,208.48,7.8637]
[1735825454727,24.153354,208.58,208.54,7.96586118]
[1735825454931,0.74131617,208.57,208.54,7.96586118]
[1735825458863,0.74131617,208.57,208.55,7.96586118]
[1735825459445,0.74131617,208.62,208.56,7.96586118]
[1735825459650,0.74131617,208.62,208.57,7.96586118]
[1735825459946,0.74131617,208.62,208.61,7.96586118]
[1735825460135,20.8,208.66,208.61,7.96586118]
[1735825460136,0.74131617,208.65,208.61,7.96586118]
[1735825460460,0.74131617,208.65,208.62,7.96586118]
[1735825460767,0.74131617,208.65,208.55,20.0]
[1735825461054,0.74131617,208.65,208.62,7.96586118]
[1735825461556,0.74131617,208.65,208.6,7.6172]
[1735825461853,0.74131617,208.65,208.63,7.96586118]
[1735825462262,0.74131617,208.65,208.6,7.6172]
[1735825462440,0.74131617,208.65,208.62,7.96586118]
[1735825462973,24.027864,208.64,208.6,7.96586118]
[1735825463154,0.74131617,208.63,208.59,7.96586118]
[1735825463479,24.027864,208.62,208.56,7.96586118]
[1735825463654,24.027864,208.6,208.54,7.96586118]
[1735825463968,0.74131617,208.59,208.55,7.96586118]
[1735825464830,24.027864,208.58,208.55,7.96586118]
[1735825465035,0.74131617,208.57,208.55,7.96586118]
[1735825466745,0.74131617,208.61,208.56,7.96586118]
[1735825466939,0.74131617,208.61,208.58,7.96586118]
[1735825467168,0.74131617,208.64,208.58,7.96586118]
[1735825467674,0.25098,208.63,208.58,7.96586118]
[1735825468159,0.12549,208.62,208.58,7.96586118]
[1735825468361,23.902374,208.61,208.58,7.96586118]
[1735825468555,23.902374,208.61,208.59,7.96586118]
[1735825469378,0.74131617,208.62,208.59,7.96586118]
[1735825469594,0.74131617,208.65,208.59,7.96586118]
[1735825469789,0.12549,208.64,208.59,7.96586118]
[1735825470147,24.027864,208.64,208.6,7.96586118]
[1735825470362,0.74131617,208.63,208.61,7.96586118]
[1735825471284,24.76918017,208.65,208.61,7.96586118]
[1735825471451,24.76918017,208.65,208.6,7.96586118]
[1735825476280,24.76918017,208.65,208.61,7.96586118]
[1735825478187,24.76918017,208.65,208.6,7.96586118]
[1735825479400,0.74131617,208.65,208.61,7.96586118]
[1735825482497,0.74131617,208.65,208.52,0.7190333]
[1735825482498,0.74131617,208.65,208.62,7.96586118]
[1735825482685,0.74131617,208.65,208.63,7.96586118]
[1735825483898,20.8,208.66,208.63,7.96586118]
[1735825484099,20.8,208.66,208.64,7.96586118]
[1735825490886,20.8,208.66,208.65,7.96586118]
[1735825491086,20.8,208.66,208.64,7.96586118]
[1735825491278,20.8,208.66,208.63,7.96586118]
[1735825492081,20.8,208.66,208.64,7.96586118]
[1735825500394,20.8,208.66,208.6,20.0]
[1735825500695,20.8,208.66,208.63,7.96586118]
[1735825501193,24.51820017,208.65,208.57,7.6176]
[1735825501395,0.37647,208.62,208.52,8.1526]
[1735825501700,23.776884,208.61,208.55,7.96586118]
[1735825502000,0.74131617,208.6,208.55,7.96586118]
[1735825502573,0.74131617,208.6,208.56,7.96586118]
[1735825504614,0.74131617,208.6,208.57,7.96586118]
[1735825506110,0.74131617,208.6,208.58,7.96586118]
[1735825506607,0.74131617,208.62,208.59,7.96586118]
[1735825506813,0.74131617,208.65,208.6,7.96586118]
[1735825507397,0.74131617,208.65,208.61,7.96586118]
[1735825508107,23.776884,208.64,208.55,20.0]
[1735825508306,0.74131617,208.63,208.59,7.96586118]
[1735825508486,0.74131617,208.63,208.6,7.96586118]
[1735825509082,0.74131617,208.63,208.61,7.96586118]
[1735825509294,0.74131617,208.64,208.61,7.96586118]
[1735825509700,0.74131617,208.64,208.55,20.0]
[1735825509901,0.37647,208.63,208.52,8.1526]
[1735825510210,23.776884,208.61,208.57,7.96586118]
[1735825510386,0.74131617,208.6,208.57,7.96586118]
[1735825510894,0.74131617,208.6,208.52,8.1526]
[1735825511302,0.74131617,208.6,208.57,7.96586118]
[1735825511514,0.74131617,208.6,208.56,7.96586118]
[1735825511710,0.74131617,208.6,208.57,7.96586118]
[1735825512214,0.74131617,208.6,208.52,8.1526]
[1735825512413,0.74131617,208.6,208.57,7.96586118]
[1735825513086,0.74131617,208.6,208.52,8.1526]
[1735825513291,0.74131617,208.6,208.59,7.96586118]
[1735825513501,0.74131617,208.65,208.59,7.96586118]
[1735825513786,0.74131617,208.65,208.61,7.96586118]
[1735825514311,0.74131617,208.65,208.62,7.96586118]
[1735825514691,24.51820017,208.65,208.62,7.96586118]
[1735825515695,0.74131617,208.65,208.62,7.96586118]
[1735825516613,0.74131617,208.65,208.64,7.96586118]
[1735825516799,20.8,208.66,208.64,7.96586118]
[1735825517194,0.74131617,208.65,208.64,7.96586118]
[1735825517403,0.74131617,208.65,208.63,7.96586118]
[1735825517610,20.8,208.66,208.63,7.96586118]
[1735825517808,0.74131617,208.65,208.63,7.96586118]
[1735825518014,0.74131617,208.65,208.62,7.96586118]
[1735825519822,0.74131617,208.65,208.61,7.96586118]
[1735825522625,23.776884,208.64,208.62,7.96586118]
[1735825522829,20.8,208.66,208.63,7.96586118]
[1735825523119,20.8,208.66,208.64,7.96586118]
[1735825523914,20.8,208.66,208.65,7.96586118]
[1735825524715,20.8,208.66,208.64,7.96586118]
[1735825524913,20.8,208.66,208.63,7.96586118]
[1735825525120,20.8,208.66,208.58,6.4013]
[1735825525121,20.8,208.66,208.64,7.96586118]
[1735825525739,20.8,208.66,208.65,7.96586118]
[1735825527023,20.8,208.66,208.64,7.96586118]
[1735825527618,20.8,208.66,208.63,7.96586118]
[1735825528332,20.8,208.66,208.64,7.96586118]
[1735825529730,20.8,208.66,208.63,7.96586118]
[1735825530737,20.8,208.66,208.64,7.96586118]
[1735825531238,20.8,208.66,208.65,7.96586118]
[1735825532913,20.8,208.66,208.64,7.96586118]
[1735825539939,20.8,208.66,208.63,7.96586118]
[1735825541546,20.8,208.66,208.59,1.6519]
[1735825541839,20.8,208.66,208.63,7.96586118]
[1735825542539,20.8,208.66,208.62,7.96586118]
[1735825542739,23.776884,208.65,208.59,1.6519]
[1735825543040,23.776884,208.65,208.59,7.96586118]
[1735825543041,0.74131617,208.64,208.59,7.96586118]
[1735825544045,0.74131617,208.64,208.6,7.96586118]
[1735825544347,0.74131617,208.64,208.59,7.96586118]
[1735825545742,0.74131617,208.64,208.6,7.96586118]
[1735825545933,0.74131617,208.64,208.61,7.96586118]
[1735825546120,24.51820017,208.65,208.62,7.96586118]
[1735825546941,24.51820017,208.65,208.63,7.96586118]
[1735825551252,24.51820017,208.65,208.61,7.96586118]
[1735825552528,20.8,208.66,208.63,7.96586118]
[1735825554446,24.51820017,208.65,208.63,7.96586118]
[1735825555151,24.51820017,208.65,208.61,7.96586118]
[1735825558059,0.37647,208.64,208.59,7.96586118]
[1735825558265,24.153354,208.62,208.59,7.96586118]
[1735825558441,23.776884,208.6,208.58,7.96586118]
[1735825558635,0.37647,208.62,208.56,7.96586118]
[1735825558636,0.74131617,208.59,208.56,7.96586118]
[1735825558964,23.776884,208.6,208.56,7.96586118]
[1735825559266,0.74131617,208.59,208.57,7.96586118]
[1735825559452,23.776884,208.6,208.48,0.71919166]
[1735825559653,0.74131617,208.59,208.57,7.96586118]
[1735825561361,0.74131617,208.61,208.58,7.96586118]
[1735825563671,24.153354,208.6,208.55,7.96586118]
[1735825563968,0.74131617,208.59,208.55,7.96586118]
[1735825564273,23.776884,208.58,208.55,7.96586118]
[1735825564577,23.776884,208.56,208.54,7.96586118]
[1735825564767,0.74131617,208.55,208.47,7.6884]
[1735825565075,0.74131617,208.55,208.53,7.96586118]
[1735825565772,24.51820017,208.55,208.54,7.96586118]
[1735825566948,1.11778617,208.6,208.54,7.96586118]
[1735825567147,1.11778617,208.6,208.58,7.96586118]
[1735825567368,0.86680617,208.6,208.58,7.96586118]
[1735825567960,24.89467017,208.62,208.58,7.96586118]
[1735825568872,24.89467017,208.62,208.59,7.96586118]
[1735825568873,0.74131617,208.62,208.59,7.96586118]
[1735825569053,0.74131617,208.65,208.61,7.96586118]
[1735825569559,24.027864,208.64,208.6,7.96586118]
[1735825569760,23.776884,208.62,208.6,7.96586118]
[1735825570377,0.74131617,208.61,208.59,7.96586118]
[1735825570570,0.12549,208.63,208.59,7.96586118]
[1735825570873,23.776884,208.61,208.59,7.96586118]
[1735825571072,24.51820017,208.6,208.59,7.96586118]
[1735825571477,23.776884,208.6,208.59,7.96586118]
[1735825576375,23.776884,208.6,208.58,7.96586118]
[1735825576975,23.776884,208.6,208.59,7.96586118]
[1735825578682,0.86680617,208.63,208.59,7.96586118]
[1735825578975,0.74131617,208.65,208.62,7.96586118]
[1735825579177,0.74131617,208.65,208.63,7.96586118]
[1735825579762,20.8,208.66,208.64,7.96586118]
[1735825579989,0.74131617,208.65,208.63,7.96586118]
[1735825580356,24.51820017,208.65,208.63,7.96586118]
[1735825580581,23.776884,208.65,208.63,7.96586118]
[1735825580955,24.51820017,208.65,208.63,7.96586118]
[1735825581651,24.51820017,208.65,208.62,7.96586118]
[1735825581975,23.776884,208.64,208.62,7.96586118]
[1735825582181,0.74131617,208.63,208.6,7.96586118]
[1735825582367,24.89467017,208.65,208.6,7.96586118]
[1735825582882,24.89467017,208.65,208.59,7.96586118]
[1735825583882,24.89467017,208.65,208.61,7.96586118]
[1735825586101,24.89467017,208.65,208.6,7.96586118]
[1735825586582,24.89467017,208.65,208.59,7.96586118]
[1735825587474,24.89467017,208.65,208.58,7.96586118]
[1735825589586,24.89467017,208.65,208.59,7.96586118]
[1735825589769,24.89467017,208.65,208.6,7.96586118]
[1735825590183,24.89467017,208.65,208.59,7.96586118]
[1735825590564,24.89467017,208.65,208.55,6.1211]
[1735825590565,24.89467017,208.65,208.58,7.96586118]
[1735825591386,0.37647,208.61,208.5,6.1191]
[1735825591689,23.776884,208.6,208.57,7.96586118]
[1735825591893,0.74131617,208.59,208.57,7.96586118]
[1735825592269,23.776884,208.58,208.57,7.96586118]
[1735825592492,23.776884,208.6,208.57,7.96586118]
[1735825592790,24.153354,208.58,208.56,7.96586118]
[1735825592995,24.153354,208.58,208.5,37.98254472]
[1735825592996,23.776884,208.56,208.55,7.96586118]
[1735825593473,0.37647,208.56,208.53,7.96586118]
[1735825593877,23.776884,208.55,208.53,7.96586118]
[1735825594084,24.51820017,208.54,208.53,7.96586118]
[1735825596098,23.776884,208.54,208.53,7.96586118]
[1735825596669,23.776884,208.54,208.52,7.96586118]
[1735825596872,23.776884,208.54,208.53,7.96586118]
[1735825597073,23.776884,208.54,208.52,7.96586118]
[1735825597274,23.776884,208.53,208.51,7.96586118]
[1735825597495,24.51820017,208.53,208.51,7.96586118]
[1735825598491,23.902374,208.51,208.5,7.96586118]
[1735825598678,0.12549,208.51,208.5,7.96586118]
[1735825598875,23.902374,208.51,208.5,7.96586118]
[1735825599990,0.12549,208.52,208.5,7.96586118]
[1735825600311,0.25098,208.52,208.5,7.96586118]
[1735825601098,0.12549,208.55,208.5,7.96586118]
[1735825601270,0.74131617,208.55,208.51,7.96586118]
[1735825602082,24.153354,208.54,208.52,7.96586118]
[1735825602266,0.86680617,208.53,208.52,7.96586118]
[1735825602471,24.64369017,208.53,208.52,7.96586118]
[1735825602974,23.902374,208.53,208.52,7.96586118]
[1735825605095,24.153354,208.53,208.52,7.96586118]
[1735825605400,0.12549,208.52,208.51,7.96586118]
[1735825605584,0.12549,208.52,208.5,7.96586118]
[1735825605785,23.902374,208.52,208.5,7.96586118]
[1735825606797,0.12549,208.53,208.5,7.96586118]
[1735825608079,0.74131617,208.52,208.5,7.96586118]
[1735825608702,0.86680617,208.52,208.51,7.96586118]
[1735825609080,0.12549,208.52,208.51,7.96586118]
[1735825609281,0.86680617,208.52,208.5,7.96586118]
[1735825610405,0.12549,208.52,208.5,7.96586118]
[1735825610591,0.74131617,208.52,208.51,7.96586118]
[1735825610797,7.96586118,208.58,208.51,7.96586118]
[1735825611003,0.74131617,208.57,208.51,7.96586118]
[1735825611718,24.153354,208.56,208.51,7.96586118]
[1735825611883,23.776884,208.54,208.51,7.96586118]
[1735825612227,23.776884,208.52,208.51,7.96586118]
[1735825612780,0.12549,208.55,208.5,7.96586118]
[1735825614302,0.12549,208.55,208.49,7.96586118]
[1735825614499,0.12549,208.53,208.49,7.96586118]
[1735825614805,23.776884,208.52,208.49,7.96586118]
[1735825615603,0.12549,208.53,208.49,7.96586118]
[1735825615801,23.776884,208.52,208.5,7.96586118]
[1735825616796,0.12549,208.53,208.5,7.96586118]
[1735825617000,23.776884,208.52,208.5,7.96586118]
[1735825617992,0.12549,208.53,208.5,7.96586118]
[1735825618292,23.776884,208.52,208.49,7.96586118]
[1735825619315,0.12549,208.53,208.5,7.96586118]
[1735825619501,23.902374,208.53,208.5,7.96586118]
[1735825620706,8.70717735,208.59,208.52,7.96586118]
[1735825621599,24.153354,208.58,208.52,7.96586118]
[1735825621802,7.96586118,208.55,208.45,6.5856]
[1735825621992,23.902374,208.53,208.47,7.96586118]
[1735825622197,0.74131617,208.52,208.45,6.5856]
[1735825622399,0.74131617,208.52,208.47,7.96586118]
[1735825623001,0.74131617,208.52,208.45,6.5856]
[1735825623298,0.74131617,208.52,208.47,7.96586118]
[1735825623900,0.37647,208.55,208.49,7.96586118]
[1735825624101,23.902374,208.53,208.49,7.96586118]
[1735825624505,0.74131617,208.52,208.49,7.96586118]
[1735825625626,0.74131617,208.53,208.49,7.96586118]
[1735825625999,23.776884,208.52,208.49,7.96586118]
[1735825626722,0.86680617,208.54,208.49,7.96586118]
[1735825627100,0.25098,208.53,208.49,7.96586118]
[1735825627427,0.12549,208.52,208.45,6.5856]
[1735825627599,23.776884,208.51,208.45,6.5856]
[1735825627801,23.776884,208.49,208.45,7.96586118]
[1735825628108,0.12549,208.46,208.4,6.449]
[1735825628310,0.12549,208.44,208.4,6.449]
[1735825628498,7.96586118,208.5,208.43,7.96586118]
[1735825628701,0.74131617,208.49,208.43,7.96586118]
[1735825629003,24.153354,208.48,208.43,7.96586118]
[1735825629207,23.902374,208.46,208.42,7.96586118]
[1735825629608,7.96586118,208.43,208.4,6.449]
[1735825629809,24.153354,208.42,208.38,1.5123]
[1735825630009,0.12549,208.4,208.37,7.96586118]
[1735825630204,0.74131617,208.41,208.38,7.96586118]
[1735825630518,50.44134471,208.5,208.4,7.96586118]
[1735825630519,0.74131617,208.44,208.4,7.96586118]
[1735825630721,0.74131617,208.47,208.41,7.96586118]
[1735825631240,24.153354,208.46,208.41,7.96586118]
[1735825631402,0.12549,208.44,208.35,6.507]
[1735825631723,9.55316118,208.5,208.43,7.96586118]
[1735825631911,0.74131617,208.49,208.43,7.96586118]
[1735825632102,24.153354,208.48,208.44,7.96586118]
[1735825632303,24.153354,208.48,208.43,7.96586118]
[1735825632304,0.12549,208.46,208.43,7.96586118]
[1735825632528,0.74131617,208.48,208.44,7.96586118]
[1735825632730,0.74131617,208.5,208.47,7.96586118]
[1735825632944,0.74131617,208.52,208.47,7.96586118]
[1735825633427,24.153354,208.51,208.46,7.96586118]
[1735825633725,0.12549,208.49,208.46,7.96586118]
[1735825634524,0.12549,208.49,208.45,7.96586118]
[1735825635027,0.12549,208.49,208.46,7.96586118]
[1735825635525,0.12549,208.49,208.45,7.96586118]
[1735825635737,0.12549,208.49,208.44,7.96586118]
[1735825636222,32.11921518,208.49,208.42,7.96586118]
[1735825636405,24.153354,208.47,208.41,7.96586118]
[1735825636600,0.12549,208.45,208.41,7.96586118]
[1735825637002,24.153354,208.45,208.39,7.96586118]
[1735825637209,0.74131617,208.44,208.39,7.96586118]
[1735825637408,0.74131617,208.44,208.4,7.96586118]
[1735825637626,0.74131617,208.44,208.41,7.96586118]
[1735825637926,0.74131617,208.44,208.4,7.96586118]
[1735825639020,0.12549,208.43,208.4,7.96586118]
[1735825639326,0.12549,208.43,208.38,7.96586118]
[1735825639544,24.153354,208.43,208.38,7.96586118]
[1735825639832,0.74131617,208.42,208.38,7.96586118]
[1735825640639,0.12549,208.42,208.38,7.96586118]
[1735825640808,0.12549,208.42,208.39,7.96586118]
[1735825641709,0.12549,208.42,208.4,7.96586118]
[1735825642139,23.776884,208.43,208.4,7.96586118]
[1735825642346,0.74131617,208.42,208.4,7.96586118]
[1735825642505,0.12549,208.43,208.4,7.96586118]
[1735825642798,0.86680617,208.43,208.4,7.96586118]
[1735825643037,0.86680617,208.43,208.36,1.6592]
[1735825643199,0.86680617,208.43,208.4,7.96586118]
[1735825643624,0.74131617,208.45,208.41,7.96586118]
[1735825643831,0.74131617,208.45,208.42,7.96586118]
[1735825644526,0.12549,208.46,208.42,7.96586118]
[1735825644705,0.86680617,208.46,208.42,7.96586118]
[1735825645223,0.25098,208.45,208.42,7.96586118]
[1735825645423,0.12549,208.42,208.36,1.6592]
[1735825645633,0.74131617,208.42,208.4,7.96586118]
[1735825646225,0.74131617,208.46,208.4,7.96586118]
[1735825646432,7.96586118,208.47,208.4,7.96586118]
[1735825646727,24.153354,208.45,208.39,7.96586118]
[1735825646928,0.12549,208.43,208.39,7.96586118]
[1735825647315,0.74131617,208.44,208.39,7.96586118]
[1735825647518,0.74131617,208.44,208.4,7.96586118]
[1735825648124,0.12549,208.43,208.4,7.96586118]
[1735825648327,0.74131617,208.44,208.4,7.96586118]
[1735825648522,0.74131617,208.46,208.4,7.96586118]
[1735825648831,0.74131617,208.46,208.41,7.96586118]
[1735825649132,0.74131617,208.46,208.4,7.96586118]
[1735825649332,0.12549,208.45,208.4,7.96586118]
[1735825650114,24.89467017,208.47,208.41,7.96586118]
[1735825650333,24.153354,208.45,208.39,7.96586118]
[1735825650635,0.12549,208.43,208.39,7.96586118]
[1735825651219,0.12549,208.43,208.39,7.46586118]
[1735825651416,24.153354,208.43,208.38,7.96586118]
[1735825651619,0.74131617,208.42,208.38,7.96586118]
[1735825652026,0.74131617,208.42,208.39,7.96586118]
[1735825652238,24.89467017,208.45,208.4,7.96586118]
[1735825656539,24.89467017,208.45,208.38,7.96586118]
[1735825656842,24.153354,208.43,208.36,7.96586118]
[1735825657139,0.74131617,208.42,208.36,7.96586118]
[1735825657319,32.11921518,208.41,208.31,1.5638]
[1735825657641,32.11921518,208.39,208.26,1.6277]
[1735825657824,24.153354,208.37,208.32,7.96586118]
[1735825658011,0.12549,208.35,208.31,7.96586118]
[1735825658212,0.12549,208.35,208.26,1.6277]
[1735825658213,0.12549,208.35,208.32,7.96586118]
[1735825658428,0.12549,208.35,208.33,7.96586118]
[1735825658629,0.74131617,208.39,208.34,7.96586118]
[1735825659012,0.37647,208.38,208.34,7.96586118]
[1735825659222,24.153354,208.38,208.34,7.96586118]
[1735825659423,0.12549,208.36,208.34,7.96586118]
[1735825660347,0.12549,208.37,208.34,7.96586118]
[1735825661045,0.74131617,208.39,208.36,7.96586118]
[1735825661359,7.96586118,208.45,208.38,7.96586118]
[1735825661528,24.153354,208.43,208.38,7.96586118]
[1735825661728,24.153354,208.41,208.37,7.96586118]
[1735825661925,0.74131617,208.4,208.35,7.96586118]
[1735825662123,0.74131617,208.4,208.36,7.96586118]
[1735825662317,0.74131617,208.42,208.36,7.96586118]
[1735825662736,24.153354,208.41,208.36,7.96586118]
[1735825662940,0.74131617,208.4,208.36,7.96586118]
[1735825664339,24.153354,208.41,208.37,7.96586118]
[1735825665148,0.74131617,208.42,208.38,7.96586118]
[1735825665442,7.96586118,208.45,208.34,7.9472]
[1735825665645,24.89467017,208.44,208.38,7.96586118]
[1735825665938,24.89467017,208.44,208.36,7.96586118]
[1735825665939,24.76918017,208.44,208.36,7.96586118]
[1735825666142,24.027864,208.41,208.34,7.96586118]
[1735825666326,24.153354,208.39,208.34,7.96586118]
[1735825666527,0.74131617,208.38,208.34,7.96586118]
[1735825666845,0.74131617,208.38,208.33,7.96586118]
[1735825667226,0.74131617,208.38,208.32,7.96586118]
[1735825667538,0.74131617,208.38,208.33,7.96586118]
[1735825667735,0.74131617,208.38,208.34,7.96586118]
[1735825667942,0.74131617,208.38,208.35,7.96586118]
[1735825670550,0.74131617,208.38,208.36,7.96586118]
[1735825671541,0.74131617,208.42,208.37,7.96586118]
[1735825672049,24.153354,208.41,208.36,7.96586118]
[1735825672272,0.74131617,208.4,208.32,20.0]
[1735825672447,0.74131617,208.4,208.35,7.96586118]
[1735825672641,0.12549,208.39,208.35,7.96586118]
[1735825673147,0.74131617,208.4,208.35,7.96586118]
[1735825673651,0.12549,208.39,208.36,7.96586118]
[1735825673826,0.12549,208.39,208.35,7.96586118]
[1735825674021,25.721554,208.39,208.27,0.71986513]
[1735825674239,25.721554,208.39,208.22,18.51506156]
[1735825674240,0.37647,208.35,208.28,7.96586118]
[1735825674440,0.37647,208.33,208.28,7.96586118]
[1735825674648,0.12549,208.31,208.28,7.96586118]
[1735825674946,0.86680617,208.31,208.28,7.96586118]
[1735825675627,0.74131617,208.31,208.28,7.96586118]
[1735825675826,20.74131617,208.38,208.3,7.96586118]
[1735825676132,0.74131617,208.38,208.33,7.96586118]
[1735825676326,24.153354,208.37,208.33,7.96586118]
[1735825676538,0.12549,208.35,208.33,7.96586118]
[1735825676736,0.12549,208.35,208.32,7.96586118]
[1735825678363,0.74131617,208.36,208.32,7.96586118]
[1735825679455,32.11921518,208.35,208.28,7.96586118]
[1735825679655,0.12549,208.33,208.28,7.96586118]
[1735825680030,0.12549,208.33,208.29,7.96586118]
[1735825682532,0.74131617,208.35,208.29,7.96586118]
[1735825683355,24.153354,208.34,208.28,7.96586118]
[1735825683669,0.12549,208.32,208.28,7.96586118]
[1735825684244,0.12549,208.32,208.29,7.96586118]
[1735825684443,0.74131617,208.33,208.29,7.96586118]
[1735825684660,0.74131617,208.37,208.32,7.96586118]
[1735825685234,0.74131617,208.37,208.34,7.96586118]
[1735825685439,8.5,208.38,208.36,7.96586118]
[1735825685643,8.5,208.38,208.3,32.58334602]
[1735825685847,8.5,208.38,208.35,7.96586118]
[1735825686156,8.5,208.38,208.34,7.96586118]
[1735825687358,8.5,208.38,208.33,7.96586118]
[1735825687560,8.5,208.38,208.34,7.96586118]
[1735825688050,8.5,208.38,208.33,7.96586118]
[1735825688432,0.74131617,208.37,208.33,7.96586118]
[1735825689153,0.74131617,208.37,208.31,7.96586118]
[1735825690550,0.74131617,208.37,208.3,7.96586118]